Cogmind - Beta 16.1 @@@ ROGUE MODE // 2026.03.20 @ 02:12:31 Player: TheSkyeDoctor Result: Destroyed by G-47 Trooper with Particle Gun Performance ------------- Evolutions (2) 1000 Regions Visited (3) 600 Robots Destroyed (47) 235 Value Destroyed (1246) 1246 Prototype IDs (0) 0 Alien Tech Used (0) 0 Bonus (0) 0 TOTAL SCORE: 3081 Bonus ------- None Cogmind --------- Core Integrity 0/550 Matter 267/300 Energy 100/100 System Corruption 0% Temperature Cool (9) Movement Core (1350) Ox26 Location -8/Materials Parts ------- > --- POWER (1) -------- (None) > --- PROPULSION (2) --- (None) > --- UTILITY (6) ------ Huge Storage Unit System Shield System Shield > --- WEAPON (2) ------- (None) > --- INVENTORY (25) --- Nuclear Core Heat Sink Structural Scanner Signal Interpreter Improved Terrain Scanner Seismic Detector Particle Charger Hacking Suite Peak State ------------ > --- POWER ------------ Nuclear Core > --- PROPULSION ------- Compact Wheel > --- UTILITY ---------- Huge Storage Unit Seismic Detector Targeting Computer Insulated Plating System Shield System Shield > --- WEAPON ----------- Ion Cannon Flak Cannon > --- INVENTORY -------- Nuclear Core Heat Sink Structural Scanner Signal Interpreter Improved Terrain Scanner Seismic Detector Particle Charger Medium Laser Rocket Launcher [Rating: 23] Favorites ----------- Power Nuclear Core Engine Light Ion Engine Power Core Nuclear Core Propulsion Light Treads Treads Light Treads Wheel Wheel Utility Seismic Detector Device Seismic Detector Storage Huge Storage Unit Processor Targeting Computer Hackware System Shield Protection Light Armor Plating Weapon Ion Cannon Energy Gun Medium Laser Energy Cannon Ion Cannon Ballistic Gun Autogun Ballistic Cannon Flak Cannon Launcher Rocket Launcher Build | -11 -10 -9 -8 ------- Run | Yrd Mat Mat Mat Slots Evolved 4 | . . 2 2 Power . | . . . . Propulsion . | . . . . Utility 4 | . . 2 2 Weapon . | . . . . Parts Attached 29 | 7 1 6 15 Power 4 | 1 1 1 1 Engine 2 | 1 1 . . Core 2 | . . 1 1 Reactor . | . . . . Propulsion 7 | 2 . . 5 Treads 2 | 2 . . . Leg . | . . . . Wheel 5 | . . . 5 Hover . | . . . . Flight . | . . . . Utility 12 | 2 . 3 7 Device 3 | 1 . . 2 Storage 2 | 1 . 1 . Processor 2 | . . 1 1 Hackware 2 | . . . 2 Protection 3 | . . 1 2 Artifact . | . . . . Weapon 6 | 2 . 2 2 Energy Gun 1 | 1 . . . Energy Cannon 1 | . . 1 . Ballistic Gun 2 | 1 . 1 . Ballistic Cannon 1 | . . . 1 Launcher 1 | . . . 1 Special Weapon . | . . . . Impact Weapon . | . . . . Slashing Weapon . | . . . . Piercing Weapon . | . . . . Special Melee Weapon . | . . . . Unidentified Prototypes . | . . . . Parts Lost 22 | . 1 . 21 Power 3 | . 1 . 2 Propulsion 6 | . . . 6 Utility 8 | . . . 8 Weapon 5 | . . . 5 Highest Loss Streak 9 | . 1 . 9 To Critical Strikes . | . . . . Average Backups 9 | 2 6 10 10 Power . | . . 1 . Propulsion 1 | 1 1 1 . Utility 5 | . 3 6 6 Weapon 1 | . . 1 2 Tool/Special . | . . . . Unused Backups 10 | . 1 1 8 Power 2 | . . 1 1 Propulsion 1 | . 1 . . Utility 7 | . . . 7 Weapon . | . . . . Tool/Special . | . . . . Average Slot Usage (%) 94 | . 100 99 88 Engine 2 | . 14 . . Core 7 | . . 10 8 Treads 16 | . 28 22 7 Wheel 2 | . . . 4 Device 13 | . 14 11 16 Storage 10 | . 14 11 9 Processor 8 | . . 10 10 Hackware 2 | . . . 6 Protection 7 | . . 11 8 Energy Gun 3 | . 14 . . Energy Cannon 7 | . . 10 8 Ballistic Gun 9 | . 14 11 5 Ballistic Cannon 1 | . . . 2 Peak Build Rating 23 | 7 8 16 23 Average Rating 14 | 5 7 14 18 On Entrance 7 | . 7 8 16 Avg Prop Armor Cover (%) . | . . . . Naked Turns . | . . . . Heaviest Build 104 | 12 14 100 104 Greatest Support 40 | 40 40 40 40 Greatest Overweight (x) 27 | . . 2 27 Average Overweight (x) 2 | . . 1 4 Largest Inventory Capacity 25 | 8 8 25 25 Average Capacity 20 | 7 8 23 25 Most Carried 13 | 4 8 13 13 Average Carried 9 | 2 6 10 10 Final Capacity 25 | 8 8 25 25 Final Carried 13 | 4 8 13 8 Class Distribution -------------------- 84% | Mutant 15% | Hacker-Mutant Dominant Class ---------------- Mutant | -10/Materials Mutant | -9/Materials Mutant | -8/Materials Resources | -11 -10 -9 -8 ----------- Run | Yrd Mat Mat Mat Matter Collected 755 | 283 40 159 273 Remotely . | . . . . Salvage Created 1589 | 128 289 430 742 Parts 76 | 11 13 29 23 Haulers Intercepted 2 | . . 1 1 Recyclers Shooed 1 | . . 1 . Parts Field Recycled . | . . . . Retrieved Matter . | . . . . Parts Self-Destructed . | . . . . Prevented . | . . . . Parts Restored . | . . . . Kills | -11 -10 -9 -8 ------- Run | Yrd Mat Mat Mat Combat Hostiles Destroyed 33 | . 8 10 15 Guns 12 | . 8 1 3 Cannons 18 | . . 9 9 AOE 3 | . . . 3 Classes Destroyed 10 | 2 3 3 2 Worker 2 | . . . 2 Builder 1 | . . . 1 Tunneler 3 | 2 . . 1 Hauler 2 | . . 1 1 Recycler 2 | 1 . . 1 Operator 2 | . 1 1 . Watcher 2 | . . 1 1 Swarmer 9 | . 2 4 3 Grunt 20 | . 6 3 11 Sentry 4 | . . 3 1 Best Kill Streak 6 | 2 3 6 6 Combat Bots Only 6 | . 3 6 4 Max Kills in Single Turn 4 | 1 1 1 4 Gunslinging . | . . . . Exploded 3 | . . . 3 Melee . | . . . . Uniques/NPCs Destroyed . | . . . . Combat | -11 -10 -9 -8 -------- Run | Yrd Mat Mat Mat Hostile Shots Fired 267 | . 43 67 157 Missed 73 | . 13 26 34 Hits 194 | . 30 41 123 Projectile 194 | . 30 41 123 Critical Strikes 6 | . . . 6 Damage Taken 2553 | . 306 391 1856 Core 622 | . 20 40 562 Absorbed by Shields . | . . . . Core Remaining (%) 94 | 100 92 90 . Volleys Fired 141 | 13 35 35 58 Largest 2 | 2 2 2 2 Hottest 97 | 70 70 83 97 Shots Fired 267 | 26 70 70 101 Gun 170 | 26 70 41 33 Cannon 94 | . . 29 65 Launcher 3 | . . . 3 Special . | . . . . Kinetic 123 | 13 35 35 40 Thermal 141 | 13 35 35 58 Explosive 3 | . . . 3 Electromagnetic . | . . . . Robot Hit Streak 12 | 5 11 11 12 Robot Miss Streak 6 | 2 3 4 6 Penetration Max . | . . . . Secondary Targets . | . . . . Shots Hit Robots 174 | 16 45 42 71 Core Hits 88 | 6 18 13 51 Critical Kills . | . . . . Critical Parts Destroyed 1 | . 1 . . Critical Strikes 5 | 1 4 . . Burn 4 | 1 3 . . Destroy 1 | . 1 . . Melee Attacks . | . . . . Impact . | . . . . Slashing . | . . . . Piercing . | . . . . Sneak Attacks . | . . . . Combat Hostiles . | . . . . Follow-up Attacks . | . . . . Damage Inflicted 3174 | 167 461 775 1771 Guns 1167 | 167 461 291 248 Cannons 1559 | . . 484 1075 Explosions 448 | . . . 448 Melee . | . . . . Ramming . | . . . . Kinetic 961 | 68 176 228 489 Thermal 1765 | 99 285 547 834 Explosive 448 | . . . 448 Electromagnetic . | . . . . Impact . | . . . . Slashing . | . . . . Piercing . | . . . . Highest Corruption . | . . . . Average Corruption . | . . . . Corruption Purged . | . . . . Corruption Blocked . | . . . . Overload Shots . | . . . . Overflow Damage 61 | . . 45 16 Projectiles 58 | . . 45 13 Explosions 3 | . . . 3 Melee . | . . . . Knockbacks 11 | . . . 11 Impact . | . . . . Kinetic 11 | . . . 11 Secondary . | . . . . Self-Inflicted Damage 93 | . . . 93 Shots 2 | . . . 2 Rammed . | . . . . Targets Rammed . | . . . . Kicked . | . . . . Crushed . | . . . . Highest Temperature 396 | 140 203 396 384 Average Temperature 91 | 56 77 111 91 Received Heat Transfer 1182 | . 117 75 990 Effects 3 | . . 1 2 Shutdowns 2 | . . 1 1 Damage (minor) 1 | . . . 1 Siege Activations . | . . . . Martial Activations . | . . . . Shielding Activations . | . . . . Robots Disrupted . | . . . . Combat Hostiles . | . . . . Robots Corrupted . | . . . . Combat Hostiles . | . . . . Parts Fried . | . . . . Impact Corruptions . | . . . . Robots Melted . | . . . . Combat Hostiles . | . . . . Parts Melted 8 | . 5 3 . Heat Transferred 3959 | 370 1073 962 1554 Parts Sabotaged . | . . . . Parts Stolen . | . . . . Parts Stripped . | . . . . Power Chain Reactions . | . . . . Alert | -11 -10 -9 -8 ------- Run | Yrd Mat Mat Mat Maximum Alert Level . | . . . . Low Security (%) 100 | 100 100 100 100 Level 1 . | . . . . Level 2 . | . . . . Level 3 . | . . . . Level 4 . | . . . . Level 5 . | . . . . High Security . | . . . . Max Security . | . . . . Peak Influence 151 | 10 115 151 111 Initial 25 | . . 25 25 Average 34 | 1 46 52 18 Influence Increases 1010 | 15 260 302 433 Destroy 0b10 Robot/C 660 | . 160 200 300 Destroy 0b10 Robot/NC 70 | 15 5 15 35 Destroy Leader 148 | . 30 64 54 Successful Hack 37 | . 20 17 . Disable Machine 30 | . . . 30 Destroy Structure 20 | . . 6 14 Lose Combat Pursuer 45 | . 45 . . Influence Decreases 931 | 15 199 303 414 Entered New Map 71 | . . 36 35 Time Decay 645 | 15 155 256 219 Lost Part 149 | . 10 . 139 Purge Threat 66 | . 34 11 21 Squads Dispatched 6 | . 1 2 3 Investigation . | . . . . Extermination . | . . . . Reinforcement 5 | . 1 2 2 Assault . | . . . . Garrison 1 | . . . 1 Intercept . | . . . . Searches Triggered . | . . . . Construction Impeded . | . . . . Haulers Reinforced . | . . . . Active Scanning Responses . | . . . . Cargo Convoy Interrupts . | . . . . Stealth | -11 -10 -9 -8 --------- Run | Yrd Mat Mat Mat Distress Signals . | . . . . Communications Jammed . | . . . . Distress Signals . | . . . . Times Spotted 49 | . 15 12 22 Peak Tracking Total 6 | . 4 6 6 Tactical Retreats 2 | . 2 . . Traps | -11 -10 -9 -8 ------- Run | Yrd Mat Mat Mat Traps Triggered . | . . . . Indirectly . | . . . . Trap Hack Attempts . | . . . . Triggered . | . . . . Disarmed . | . . . . Reprogrammed . | . . . . Reused . | . . . . Traps Extracted . | . . . . Installed . | . . . . Triggered . | . . . . Machines | -11 -10 -9 -8 ---------- Run | Yrd Mat Mat Mat Machines Disabled 2 | . . . 2 Max in Single Turn 1 | . . . 1 Machines Repaired . | . . . . Machines Dismantled . | . . . . Machines Sabotaged . | . . . . Overloaded Fab Kills . | . . . . Hacking | -11 -10 -9 -8 --------- Run | Yrd Mat Mat Mat Machines Accessed 7 | . 4 2 1 Terminals 6 | . 4 1 1 Fabricators . | . . . . Repair Stations . | . . . . Recycling Units 1 | . . 1 . Scanalyzers . | . . . . Garrison Access . | . . . . Total Hacks 23 | . 14 5 4 Successful 17 | . 8 5 4 Failed 6 | . 6 . . Catastrophic . | . . . . Database Lockouts . | . . . . Manual 23 | . 14 5 4 Terminals 22 | . 14 4 4 Fabricators . | . . . . Repair Stations . | . . . . Recycling Units 1 | . . 1 . Scanalyzers . | . . . . Garrison Access . | . . . . Terminal Hacks 5 | . 1 2 2 Unreport Threat 3 | . 1 1 1 Zone Layout 2 | . . 1 1 Fabricator Hacks . | . . . . Repair Station Hacks . | . . . . Recycling Unit Hacks 1 | . . 1 . Retrieve Components 1 | . . 1 . Scanalyzer . | . . . . Garrison Access Hacks . | . . . . Unauthorized Hacks 11 | . 7 2 2 Terminals 11 | . 7 2 2 Assimilate 5 | . 3 1 1 Botnet 6 | . 4 1 1 Fabricators . | . . . . Repair Stations . | . . . . Recycling Units . | . . . . Scanalyzers . | . . . . Garrison Access . | . . . . Data Cores Recovered . | . . . . Used . | . . . . Hacking Detections 4 | . 4 . . Full Trace Events . | . . . . Feedback Events . | . . . . Feedback Blocked . | . . . . Robot Schematics Acquired . | . . . . Robots Built . | . . . . Authchips . | . . . . Time . | . . . . Total Robot Build Rating . | . . . . Part Schematics Acquired . | . . . . Parts Built . | . . . . Authchips . | . . . . Time . | . . . . Total Part Build Rating . | . . . . Part Studies Acquired . | . . . . Parts Repaired . | . . . . Time . | . . . . Parts Recycled . | . . . . Recycled Matter . | . . . . Retrieved Matter . | . . . . Retrieved Components 4 | . . 4 . Parts Scanalyzed . | . . . . Part Schematics Acquired . | . . . . Parts Damaged . | . . . . Bothacking | -11 -10 -9 -8 ------------ Run | Yrd Mat Mat Mat Used RIF Installer . | . . . . Robots Hacked . | . . . . Non-combat . | . . . . Combat . | . . . . Robot Hacks Applied . | . . . . Relay Couplers Released . | . . . . Fabnet Peak Effective % . | . . . . Robots Rewired . | . . . . Allies Hacked . | . . . . Hacks Repelled . | . . . . Allies | -11 -10 -9 -8 -------- Run | Yrd Mat Mat Mat Total Allies . | . . . . Largest Group . | . . . . Highest-Rated Group . | . . . . Highest-Rated Ally . | . . . . Total Orders . | . . . . Ally Attacks . | . . . . Total Damage . | . . . . Kills . | . . . . Allies Corrupted . | . . . . Allies Melted . | . . . . Intel | -11 -10 -9 -8 ------- Run | Yrd Mat Mat Mat Active Infowar (turns) 2377 | 27 455 885 1010 Seismic 2377 | 27 455 885 1010 Robot Analysis Total . | . . . . Derelict Logs Recovered . | . . . . Drone Launches . | . . . . Drone Recoveries . | . . . . Exploration | -11 -10 -9 -8 ------------- Run | Yrd Mat Mat Mat Turns Passed 2562 | 142 455 885 1080 Spaces Moved 824 | 60 206 259 299 Core 5 | 3 . . 2 Treads 654 | 57 206 259 132 Legs . | . . . . Wheels 165 | . . . 165 Hover . | . . . . Flight . | . . . . Fastest Speed 50 | 50 160 160 140 Average Speed 249 | 154 160 296 289 Slowest Speed 1400 | 160 160 320 1400 Overloaded Moves . | . . . . Propulsion Burnouts . | . . . . Robots Hopped . | . . . . Potential Cave-ins . | . . . . Cave-ins Triggered . | . . . . Exploration Rate (%) 21 | 4 40 20 21 Regions Visited 3 Branch Regions . Pre-discovered Areas . | . . . . Known Exits Taken . | . . . . Unknown Exits Taken 3 | 1 1 1 . Scrap Searched . | . . . . Spaces Dug 1 | . . . 1 Terrain Destroyed 17 | . . 4 13 Melee . | . . . . Projectile 7 | . . 4 3 AOE 10 | . . . 10 Terrain Rammed . | . . . . Walls Destroyed . | . . . . Machines Disabled . | . . . . Actions | -11 -10 -9 -8 --------- Run | Yrd Mat Mat Mat Total 1085 | 83 269 315 418 Wait 61 | . 21 4 36 Move 821 | 59 205 258 299 Hop . | . . . . Pick Up 25 | 4 6 8 7 Fast Attach 11 | 7 . . 4 Attach 15 | . 1 2 12 Detach 1 | . . . 1 Swap 4 | . . 4 . Drop 6 | . 1 4 1 Fire 141 | 13 35 35 58 Melee . | . . . . Ram . | . . . . Kick . | . . . . Crush . | . . . . Escape Stasis . | . . . . Rewire . | . . . . Trap . | . . . . Miscellaneous . | . . . . Route ------- -11/Scrapyard -10/Materials -9/Materials -8/Materials History --------- Turn | Location | Event 26 | -11/Scrapyard | Discovered new exit (range 16) 143 | -11/Scrapyard | Entered Materials 315 | -10/Materials | Build established: Mutant 563 | -10/Materials | Discovered new exit (range 11) 598 | -10/Materials | Entered another Materials area 598 | -9/Materials | Evolved 2 slots: Utility x2 1362 | -9/Materials | Discovered new exit (range 16) 1483 | -9/Materials | Entered another Materials area 1483 | -8/Materials | Evolved 2 slots: Utility x2 1809 | -8/Materials | Lost 3 parts (1n2u) 2186 | -8/Materials | Lost 4 parts (1p2u1w) 2458 | -8/Materials | Garrison activated, responded to threat 2508 | -8/Materials | Core integrity fell below 50% 2517 | -8/Materials | Build established: Hacker-Mutant 2530 | -8/Materials | Core integrity fell below 20% 2538 | -8/Materials | Lost 9 parts (1p3n2u3w) 2563 | -8/Materials | Destroyed by G-47 Trooper with Particle Gun Last Messages --------------- 02511_ U-05 Engineer lays Concrete. 02522_ U-05 Engineer builds a Wall. 02523_ U-05 Engineer lays Concrete. 02524_ The unstable cave ceiling collapses. 02524_ U-05 Engineer lays Concrete. 02527_ Critical hit (Burn: +37). 02528_ U-05 Engineer lays Concrete. 02528_ G-47 Trooper destroyed. 02528_ U-05 Engineer lays Concrete. 02529_ U-05 Engineer builds a Wall. 02535_ U-05 Engineer builds a Door. 02535_ U-05 Engineer lays Concrete. 02538_ U-05 Engineer builds a Wall. 02539_ U-05 Engineer lays Concrete. 02545_ U-05 Engineer builds a Wall. 02549_ U-05 Engineer lays Concrete. 02549_ Targeting Computer destroyed. 02553_ U-05 Engineer lays Concrete. 02553_ Med. Laser destroyed. 02554_ U-05 Engineer lays Concrete. Map ----- +----------------------------------------------------+ | ?????????????????????????????????????????????????? | | ?????????????????????????????????????????????????? | | ?????????????????????????????????????????????????? | | ?????????????????????????????????????????????????? | | ?????????????????????????????????????????????????? | | ?????????????????????????????????????????????????? | | ?????????????????? ?????????????????????????????? | | ????????????????# ?????????????????????????????? | | ????????????##### ?????????????????????????????? | | ??????????? ?????????????????????????????? | | ?????????# #????????????????????????????? | | ?????????? #???????????? ?????????????? | | ??????????# #???????????? #??????####### | | ??????? ?# #########???# #??????# | | ????????" # #???# #??????# | | ????????? + a #???# #??????# | | ??????????# !/ T #???# ######## | | ????????????# // #???# # # "" | | ????????????# #???# # # """ | | ?#######????# #???# # # """ | | ?# ###### #???# # + """ | | ?# = %##??# # # "" | | ?# [ %* % %* =###?# # # | | ?# [%% *= %*% #?# ### ### | | ?# ##### ###########g#### ### #?# #?# * | | ?## ##???# #????# % @ %%* ## #?# ####+#### | | ??# ######+###??# uu ## #?# ## % | | ??# # [ ##??# + ### ## %! | | ??# + [ ##??# " ## # * | | ??# # #???# ! ### # """ | | ??# #########???##############?# + """" | | ??# ########?######?# #?# # """" | | ??# #? #?# ![ #?# !!! # """" | | ??# # """ #?# ![ ] #?# ! ! #= """ | | ??# # "R" #?# ! #?# !! ######## | | ??######## + " " #?# #?# ##?????? | | ?????????# # #?# / =### T#?????? | | ?????????# # #?# *%+* ! ##?????? | | ?????????# #?######?# %=### #??????? | | ?????????# #????????# !#?# #######???#### | | ?????????# =##############+####?# #?????????# | | ?????????# # ! ### %% ##### ########### | | ?????????# + *** + " # | | ?????????# # *** ### ! # | | ?????????# # ** ! #?# % ############### + | | ?????????# # #?##+######?######???# # | | ?????????##### " "" #???? ### ##### #### | | ?????????????# """"" #???? + # | | ?????????????# """"" #???? ### T # | | ?????????????# #???? #?# #####+##### | +----------------------------------------------------+ Best States ------------- Heat Dissipation 41 Energy Generation 14 Energy Capacity 250 Matter Stores 300 Matter Capacity 300 Sight Range 16 Terrain Scan Density 10 Armor Coverage 150 Resistance: EM 15 Evasion (%) 40 Targeting Accuracy 10 Recoil Reduction 2 Particle Charging 15 Defensive Hacking 20 Item Schematics ----------------- None Robot Schematics ------------------ None Fabricated ------------ Nothing Repaired ---------- Nothing Studied --------- None Alien Tech Used ----------------- None Achievements -------------- None Challenges ------------ None Game ------ Seed RapidResetCalibrator Manual? 0 Play Time 00:14:01 Cumulative 73.5 hours Start 2026.03.19 @ 23:37:08 End 2026.03.20 @ 02:12:31 Sessions 2 Manual Loads 0 Difficulty Rogue Special Mode None Game No. 169 Rogue 169 Adventurer 0 Explorer 0 Win Type - Total 0 Types 0/0/0/0/0/0/0/0/0/0 Lore% 39 Gallery% 44 Achievement% 35 Wizard Run 0 Options --------- Layout 2 ASCII 0 Keyboard 1 Movement Arrows Keybinds 0 Fullscreen 1 Font 24/Smallcaps Map View 50x44 Zoom Use 0% Tactical HUD 1 Map Filters NONE Filters NONE Steam 1 RUN: 4df2070e-6b20-41ab-bba9-01db41300699